bitfinex/quotes_ETHUSD_20240718
["timestamp","ask_amount","ask_price","bid_price","bid_amount"]
[1721343251474,0.06130967,3434.5,3434.4,2.3203]
[1721343251670,5.82236,3435.1,3434.4,5.23196]
[1721343251671,2.91123,3435.0,3434.4,5.23196]
[1721343251897,0.06108008,3434.5,3434.4,5.23196]
[1721343252086,2.91123,3435.0,3434.4,5.23196]
[1721343252265,0.06138652,3434.5,3434.4,5.23196]
[1721343252465,2.91123,3435.0,3434.4,5.23196]
[1721343252665,0.06153754,3434.9,3434.4,5.23196]
[1721343252897,0.06153754,3434.9,3434.6,2.91153]
[1721343253113,2.97288754,3434.9,3434.4,2.3203]
[1721343253273,3.20863875,3434.9,3434.4,5.23201]
[1721343253479,0.06136575,3434.8,3434.4,5.23201]
[1721343255199,0.06136575,3434.8,3434.5,2.91162]
[1721343255978,0.06136575,3434.8,3434.1,2.91137827]
[1721343256200,2.97278575,3434.8,3434.2,5.44314488]
[1721343256383,2.97278575,3434.8,3434.3,1.01253395]
[1721343256701,2.97278575,3434.8,3434.3,2.91179]
[1721343256893,0.06136575,3434.8,3434.3,2.91179]
[1721343257763,0.06136575,3434.8,3434.4,1.01253341]
[1721343257969,0.06136575,3434.8,3434.3,2.91179]
[1721343258197,0.06136575,3434.8,3434.4,1.01253327]
[1721343258397,0.06136575,3434.8,3434.3,2.91179]
[1721343258703,0.06136575,3434.8,3434.4,1.01253327]
[1721343258906,0.06136575,3434.8,3434.3,2.91179]
[1721343259203,0.06136575,3434.8,3434.4,1.01253515]
[1721343259505,0.06136575,3434.8,3434.3,2.91179]
[1721343259670,0.06136575,3434.8,3434.4,2.53133755]
[1721343259875,0.06136575,3434.8,3434.3,2.91179]
[1721343260077,0.06136575,3434.8,3434.4,1.01253658]
[1721343260279,0.06136575,3434.8,3434.3,2.91179]
[1721343260589,0.06136575,3434.8,3434.4,1.01253621]
[1721343260785,0.06136575,3434.8,3434.3,2.91176]
[1721343260986,0.06136575,3434.8,3434.4,1.01253532]
[1721343261193,0.06136575,3434.8,3434.3,2.91176]
[1721343261390,0.06136575,3434.8,3434.4,2.5313186]
[1721343261587,0.06136575,3434.8,3434.3,2.91176]
[1721343261794,0.06136575,3434.8,3434.4,1.01252731]
[1721343262088,0.06136575,3434.8,3434.3,2.91176]
[1721343262277,0.06136575,3434.8,3434.4,1.01253608]
[1721343262477,0.06136575,3434.8,3434.3,2.91176]
[1721343262790,0.06136575,3434.8,3434.4,1.01253609]
[1721343262992,0.06136575,3434.8,3434.3,2.91176]
[1721343263312,0.06136575,3434.8,3434.4,2.53132403]
[1721343263473,0.06136575,3434.8,3434.3,2.91176]
[1721343263676,0.06136575,3434.8,3434.4,2.53131373]
[1721343263900,0.06136575,3434.8,3434.3,2.91176]
[1721343264076,0.06136575,3434.8,3434.4,1.01253587]
[1721343264272,0.06136575,3434.8,3434.3,2.91176]
[1721343264516,0.06136575,3434.8,3434.4,2.53133917]
[1721343264726,0.06136575,3434.8,3434.4,2.91171]
[1721343264909,0.06136575,3434.8,3434.5,3.92411203]
[1721343265080,0.06136575,3434.8,3434.5,2.91161]
[1721343266984,0.06136575,3434.8,3434.6,2.91151]
[1721343267978,0.06136575,3434.8,3434.3,0.60577827]
[1721343268178,0.06136575,3434.8,3434.5,2.91162]
[1721343270713,0.06136575,3434.8,3434.3,6.42927827]
[1721343270883,0.06136575,3434.8,3434.4,4.43049693]
[1721343271087,0.06136575,3434.8,3434.4,2.91171]
[1721343274518,0.06136575,3434.8,3434.4,4.43046125]
[1721343274696,0.06136575,3434.8,3434.4,5.44298587]
[1721343275114,0.06136575,3434.8,3434.4,3.92423462]
[1721343275302,0.06136575,3434.8,3434.4,2.91171]
[1721343283498,0.06136575,3434.8,3434.1,5.21753]
[1721343283718,2.97274575,3434.8,3434.3,2.91173]
[1721343284515,2.97274575,3434.8,3434.3,5.82347]
[1721343284715,0.06136575,3434.8,3434.4,2.91171]
[1721343292577,0.06136575,3434.8,3434.4,5.31031]
[1721343292748,2.97275575,3434.8,3434.2,2.91182]
[1721343293146,2.91153,3434.7,3434.2,2.91182]
[1721343293587,2.37344904,3434.6,3434.0,2.91198]
[1721343293738,2.91165,3434.5,3434.0,2.91198]
[1721343293933,2.97097093,3434.5,3434.0,2.91198]
[1721343296782,2.97097093,3434.5,3434.1,2.53157053]
[1721343296959,2.97097093,3434.5,3434.2,1.01262821]
[1721343297159,2.97097093,3434.5,3434.0,3.52090575]
[1721343297388,2.97097093,3434.5,3434.1,2.5315452]
[1721343297597,2.97097093,3434.5,3434.2,1.01261808]
[1721343297890,2.97097093,3434.5,3434.0,3.52090575]
[1721343298069,2.97097093,3434.5,3434.1,2.53157145]
[1721343298286,2.97097093,3434.5,3434.2,1.01262858]
[1721343298595,2.97097093,3434.5,3434.0,3.52090575]
[1721343298787,2.97097093,3434.5,3434.1,2.53154235]
[1721343298992,0.05932093,3434.5,3434.2,3.45131694]
[1721343299189,0.05932093,3434.5,3434.2,2.4387]
[1721343300486,0.05932093,3434.5,3434.0,5.82640575]
[1721343300689,0.05932093,3434.5,3434.1,2.53153188]
[1721343300861,0.05932093,3434.5,3434.2,1.01261275]
[1721343301061,0.05932093,3434.5,3434.1,2.91192]
[1721343301310,5.83454463,3434.9,3434.2,2.53146992]
[1721343301311,2.91151,3434.7,3434.2,2.53146992]
[1721343301608,2.97103763,3434.6,3434.3,2.53146992]
[1721343301754,2.97103763,3434.6,3434.0,5.82647575]
[1721343301954,2.97103763,3434.6,3434.1,2.53151865]
[1721343302166,2.97103763,3434.6,3434.2,2.53151865]
[1721343302395,2.97103763,3434.6,3434.1,2.91197]
[1721343302599,2.97103763,3434.6,3434.2,2.53151323]
[1721343302786,0.05943763,3434.6,3434.3,1.01260529]
[1721343302995,0.05943763,3434.6,3434.1,3.52089575]
[1721343303210,2.91151,3434.7,3434.2,2.53144767]
[1721343303369,5.83455463,3434.9,3434.4,5.37421]
[1721343303370,0.05940852,3434.5,3434.4,5.37421]
[1721343303571,0.05945213,3434.6,3434.4,5.37421]
[1721343303803,0.05940852,3434.5,3434.4,5.37421]
[1721343304156,3.36765463,3434.9,3434.4,5.37421]
[1721343304356,0.05923396,3434.5,3434.4,5.37421]
[1721343304590,3.36765463,3434.9,3434.4,6.38676264]
[1721343304801,0.05935529,3434.5,3434.4,5.37421]
[1721343305037,3.36765463,3434.9,3434.4,5.37421]
[1721343305237,0.05938079,3434.5,3434.4,5.37421]
[1721343305436,0.45632463,3434.9,3434.5,2.91155]
[1721343305735,0.45632463,3434.9,3434.6,2.91153]
[1721343308528,0.05934575,3434.8,3434.6,2.91153]
[1721343316140,0.05934575,3434.8,3434.6,5.82302]
[1721343316657,0.05934575,3434.8,3434.6,2.91149]
[1721343320597,0.05934575,3434.8,3434.4,5.37413]
[1721343320806,1.039,3434.5,3434.2,2.91183]
[1721343321091,0.05912691,3434.4,3434.2,2.91183]
[1721343321292,1.039,3434.5,3434.2,2.91183]
[1721343322197,2.2789,3434.6,3434.2,2.91183]
[1721343322573,0.05929806,3434.5,3434.2,2.91183]
[1721343322959,0.05929806,3434.5,3434.3,2.3879]
[1721343323190,3.36768463,3434.9,3434.5,2.9116]
[1721343323191,0.45632463,3434.9,3434.5,2.9116]
[1721343324999,0.05940715,3434.8,3434.5,2.9116]
[1721343326810,0.05940715,3434.8,3434.5,5.82317]
[1721343327028,0.05940715,3434.8,3434.6,3.92395578]
[1721343327301,0.05940715,3434.8,3434.6,2.9115]
[1721343327665,0.05940715,3434.8,3434.7,2.91146]
[1721343329016,0.05940715,3434.8,3434.7,10.27923608]
[1721343329312,0.05940715,3434.8,3434.7,12.40672185]
[1721343329602,11.44966,3435.7,3434.9,2.91121]
[1721343329811,3.94966,3435.7,3435.1,2.91106]
[1721343330043,0.05952676,3435.6,3435.1,5.82211]
[1721343330327,0.05952676,3435.6,3435.1,2.91105]
[1721343330695,0.05952676,3435.6,3435.4,2.91085]
[1721343331000,3.4605,3435.9,3435.4,2.91085]
[1721343331201,0.05950387,3435.5,3435.4,2.91085]
[1721343331407,3.4605,3435.9,3435.4,2.91085]
[1721343331602,3.84807348,3436.1,3435.5,2.91077]
[1721343331804,6.75834348,3436.1,3435.5,2.91077]
[1721343332705,0.0596545,3436.0,3435.5,2.91077]
[1721343332907,1.0324763,3436.0,3435.5,2.91077]
[1721343333111,3.9428363,3436.0,3435.5,2.91077]
[1721343333721,1.0324763,3436.0,3435.5,2.91077]
[1721343334624,1.0324763,3436.0,3435.3,2.91092]
[1721343334926,1.0324763,3436.0,3435.5,2.91071]
[1721343335727,0.0596545,3436.0,3435.7,2.91056]
[1721343336241,0.0596545,3436.0,3435.8,2.91052]
[1721343337293,0.0596545,3436.0,3435.7,5.32316]
[1721343337294,0.0596545,3436.0,3435.9,2.91044]
[1721343339305,0.0596545,3436.0,3435.7,8.2337]
[1721343339628,0.0596545,3436.0,3435.7,5.32314]
[1721343340063,0.0596545,3436.0,3435.8,2.91051]
[1721343340914,0.0596545,3436.0,3435.6,2.91062]
[1721343341354,0.0596545,3436.0,3435.7,2.91059]
[1721343341738,0.0596545,3436.0,3435.5,2.4126]
[1721343341942,0.0596545,3436.0,3435.5,5.32333]
[1721343344033,0.0596545,3436.0,3435.5,5.32331]
[1721343345165,0.0596545,3436.0,3435.5,2.91071]
[1721343345530,2.9700145,3436.0,3435.5,2.91071]
[1721343345929,0.0596545,3436.0,3435.5,2.91071]
[1721343347252,2.9700245,3436.0,3435.5,2.91071]
[1721343347573,0.0596545,3436.0,3435.5,2.91071]
[1721343347780,2.9700145,3436.0,3435.4,2.91085]
[1721343347975,0.0596545,3436.0,3435.3,5.32288]
[1721343348179,1.039,3435.6,3434.9,2.4617]
[1721343348392,2.91137,3434.8,3434.4,2.4617]
[1721343348875,0.05907191,3434.7,3434.4,2.4617]
[1721343349383,0.05905379,3434.6,3434.4,2.4617]
[1721343349892,2.91133,3434.9,3434.4,2.4617]
[1721343351000,0.05901924,3434.8,3434.4,2.4617]
[1721343351304,0.05901924,3434.8,3434.2,2.91188]
[1721343351506,2.97043924,3434.8,3434.2,2.91188]
[1721343353302,2.91158,3434.6,3434.0,5.37374]
[1721343353500,2.91158,3434.6,3434.0,2.91204]
[1721343353673,4.93878516,3434.8,3434.0,2.91204]
[1721343353674,0.05878291,3434.5,3434.0,2.91204]
[1721343354211,2.91152,3434.7,3434.0,2.91204]
[1721343354212,0.05884132,3434.4,3434.0,2.91204]
[1721343354677,2.91152,3434.7,3434.0,2.91204]
[1721343355200,0.05900507,3434.6,3434.0,2.91204]
[1721343355874,0.05900507,3434.6,3434.1,2.91196]
[1721343357411,0.05900507,3434.6,3434.1,3.95096]
[1721343359699,0.05900507,3434.6,3434.1,6.86285]
[1721343360007,0.05900507,3434.6,3434.1,3.95089]
[1721343364002,0.05900507,3434.6,3434.1,2.91189]
[1721343364382,2.97055507,3434.6,3434.1,2.91189]
[1721343377090,2.97055507,3434.6,3433.9,6.86315]
[1721343377297,5.88216507,3434.6,3434.0,2.91205]
[1721343377510,2.97055507,3434.6,3434.0,2.91205]
[1721343378430,5.88216507,3434.6,3434.0,2.91205]
[1721343378581,2.97055507,3434.6,3433.9,2.91213]
[1721343379295,2.91172,3434.4,3433.9,2.91213]
[1721343379497,2.91172,3434.4,3433.9,3.95113]
[1721343380219,0.05846358,3434.3,3433.9,3.95113]
[1721343380887,0.05846358,3434.3,3433.9,1.039]
[1721343382180,0.05846358,3434.3,3433.8,5.37388]
[1721343384127,2.97026358,3434.3,3433.8,5.37388]
[1721343386818,0.05846358,3434.3,3433.8,5.37388]
[1721343387315,5.31081,3434.5,3433.8,5.37388]
[1721343387635,0.05864953,3434.2,3433.8,5.37388]
[1721343387826,2.91171,3434.4,3433.8,5.37388]
[1721343387988,2.91159,3434.6,3433.9,3.95109]
[1721343388192,2.91164,3434.5,3433.9,3.95109]
[1721343389197,2.91164,3434.5,3433.9,2.91209]
[1721343389515,2.91164,3434.5,3433.9,3.95109]
[1721343390898,0.05853796,3434.4,3433.9,3.95109]
[1721343392547,0.05853796,3434.4,3433.9,2.91209]
[1721343394241,0.05853796,3434.4,3434.0,2.53166213]
[1721343394454,0.05853796,3434.4,3433.9,2.91209]
[1721343394654,0.05853796,3434.4,3434.0,2.53166226]
[1721343394820,0.05853796,3434.4,3433.9,2.91209]
[1721343395019,0.05853796,3434.4,3434.0,2.53165302]
[1721343395218,0.05853796,3434.4,3433.9,2.91209]
[1721343395443,0.05853796,3434.4,3434.0,2.53165341]
[1721343395718,2.97024796,3434.4,3433.9,2.91209]
[1721343396015,2.97024796,3434.4,3434.0,2.53166528]
[1721343396217,2.97024796,3434.4,3434.1,1.01263942]
[1721343396416,2.97024796,3434.4,3433.9,3.51957567]
[1721343396618,2.97024796,3434.4,3434.0,2.53160248]
[1721343396851,2.97024796,3434.4,3434.1,1.01264099]
[1721343397051,2.97024796,3434.4,3434.2,1.01262012]
[1721343397262,2.97024796,3434.4,3433.9,3.51957567]
[1721343397461,2.97024796,3434.4,3434.0,2.53159198]
[1721343397659,2.97024796,3434.4,3434.1,2.53159198]
[1721343397956,2.97024796,3434.4,3433.9,3.51957567]
[1721343398145,2.97024796,3434.4,3434.0,2.531592]
[1721343398340,2.97024796,3434.4,3434.1,2.531592]
[1721343398545,2.97024796,3434.4,3434.2,1.0126368]
[1721343398747,2.97024796,3434.4,3433.9,3.51957567]
[1721343399159,2.97024796,3434.4,3434.0,2.53159238]
[1721343399358,2.97024796,3434.4,3434.1,2.53159238]
[1721343399690,2.97024796,3434.4,3434.2,1.01263695]
[1721343399979,2.97024796,3434.4,3433.9,3.51957567]
[1721343400211,2.97024796,3434.4,3434.0,2.53158616]
[1721343400489,2.97024796,3434.4,3434.1,2.53159376]
[1721343400649,2.97024796,3434.4,3433.9,3.51957567]
[1721343400845,2.97024796,3434.4,3434.0,2.53159905]
[1721343401046,2.97024796,3434.4,3434.1,1.01263962]
[1721343401248,2.97024796,3434.4,3433.9,3.51957567]
[1721343401585,2.97024796,3434.4,3434.0,2.5316037]
[1721343401883,2.97024796,3434.4,3434.1,2.5316037]
[1721343402180,2.97024796,3434.4,3433.9,3.51957567]
[1721343402360,2.97024796,3434.4,3434.0,2.5315988]
[1721343402692,2.97024796,3434.4,3434.1,2.5315988]
[1721343402882,2.97024796,3434.4,3433.9,3.51957567]
[1721343403182,2.97024796,3434.4,3434.0,2.531587]
[1721343403382,2.97024796,3434.4,3434.1,2.531587]
[1721343403678,2.97024796,3434.4,3433.9,3.51957567]
[1721343403886,2.97024796,3434.4,3434.0,2.53158738]
[1721343404177,2.97024796,3434.4,3434.1,2.53158738]
[1721343404479,2.97024796,3434.4,3433.9,3.51957567]
[1721343404677,2.97024796,3434.4,3434.0,2.53158908]
[1721343404877,2.97024796,3434.4,3434.1,1.01263563]
[1721343405080,2.97024796,3434.4,3433.9,3.51957567]
[1721343405253,2.97024796,3434.4,3434.0,2.53164902]
[1721343405453,2.97024796,3434.4,3434.1,1.01265961]
[1721343405648,2.97024796,3434.4,3433.9,3.51957567]
[1721343405866,2.97024796,3434.4,3434.0,2.53166218]
[1721343406181,2.97024796,3434.4,3434.1,1.01266487]
[1721343406359,2.97024796,3434.4,3433.9,3.51957567]
[1721343406569,2.97024796,3434.4,3434.0,2.53164375]
[1721343406789,2.97024796,3434.4,3434.1,1.0126575]
[1721343407089,2.97024796,3434.4,3433.9,3.51957567]
[1721343407290,2.97024796,3434.4,3434.0,2.53165978]
[1721343407492,2.97024796,3434.4,3434.1,1.01266391]
[1721343407696,2.97024796,3434.4,3433.9,3.51957567]
[1721343407990,0.05853796,3434.4,3434.0,2.53164001]
[1721343408164,0.05853796,3434.4,3434.1,2.53164001]
[1721343408369,0.05887459,3434.3,3434.2,1.012656]
[1721343408673,2.91165,3434.5,3433.9,3.51956567]
[1721343408876,0.05887459,3434.3,3434.0,2.53162025]
[1721343409092,0.0589182,3434.4,3434.1,2.53162065]
[1721343409261,0.05883097,3434.2,3433.9,4.55856567]
[1721343409589,2.91165,3434.5,3434.0,2.53161956]
[1721343409765,2.91165,3434.5,3433.9,4.55856567]
[1721343409766,0.05878735,3434.1,3433.9,4.55856567]
[1721343409966,2.91165,3434.5,3434.0,2.53163877]
[1721343410275,2.91165,3434.5,3434.1,2.53163877]
[1721343410482,2.91165,3434.5,3433.9,4.55856567]
[1721343410669,2.91165,3434.5,3434.0,2.53163545]
[1721343410865,2.91165,3434.5,3434.1,2.53163545]
[1721343411191,2.91165,3434.5,3433.9,4.55856567]
[1721343411491,2.91165,3434.5,3434.0,2.53163965]
[1721343411799,2.91165,3434.5,3434.1,2.53163965]
[1721343411985,2.91165,3434.5,3433.9,3.51956567]
[1721343412300,2.91165,3434.5,3434.0,2.53163476]
[1721343412515,2.91165,3434.5,3434.1,2.53164071]
[1721343412811,2.91165,3434.5,3433.9,3.51956567]
[1721343412960,2.91165,3434.5,3434.0,2.53167478]
[1721343413161,0.05888699,3434.4,3434.1,1.01266991]
[1721343413383,0.05888699,3434.4,3433.9,3.51956567]
[1721343413593,0.05888699,3434.4,3434.0,2.5316882]
[1721343413898,0.05888699,3434.4,3434.1,2.5316882]
[1721343414192,0.05888699,3434.4,3433.9,3.51956567]
[1721343414365,0.05888699,3434.4,3434.0,2.53164848]
[1721343414560,0.05888699,3434.4,3434.1,2.53164848]
[1721343414760,0.05888699,3434.4,3433.9,3.51956567]
[1721343414992,6.86294,3434.1,3434.0,2.53165692]
[1721343415210,6.86294,3434.1,3433.4,1.52274437]
[1721343415211,2.91214,3433.9,3433.4,0.60748567]
[1721343415395,2.91214,3433.9,3433.5,2.53205328]
[1721343415600,0.05849095,3433.8,3433.4,2.96478567]
[1721343415766,0.05849095,3433.8,3433.5,2.5320819]
[1721343415966,0.05849095,3433.8,3433.6,2.5320819]
[1721343416202,0.05849095,3433.8,3433.4,2.96478567]
[1721343416375,0.05849095,3433.8,3433.5,3.1394709]
[1721343416577,0.05849095,3433.8,3433.6,2.53198523]
[1721343416771,0.05849095,3433.8,3433.7,1.01280738]
[1721343416978,0.05849095,3433.8,3433.4,2.96478567]
[1721343417200,0.05849095,3433.8,3433.5,2.53196497]
[1721343417402,0.05849095,3433.8,3433.6,2.53196497]
[1721343417726,0.05849095,3433.8,3433.4,5.87732567]
[1721343417905,0.05849095,3433.8,3433.5,2.53196098]
[1721343418195,0.05849095,3433.8,3433.6,2.53196098]
[1721343418503,0.05849095,3433.8,3433.4,5.87732567]
[1721343418690,0.05849095,3433.8,3433.5,2.53196057]
[1721343418890,0.05849095,3433.8,3433.4,5.87732567]
[1721343419202,0.05849095,3433.8,3433.5,2.5319612]
[1721343419390,0.05849095,3433.8,3433.6,2.5319612]
[1721343419594,0.05849095,3433.8,3433.4,5.87732567]
[1721343419793,0.05849095,3433.8,3433.5,2.53196108]
[1721343419994,0.05849095,3433.8,3433.6,1.01278443]
[1721343420177,0.05849095,3433.8,3433.4,5.87732567]
[1721343420384,0.05849095,3433.8,3433.5,2.5320072]
[1721343420600,0.05849095,3433.8,3433.4,5.26984]
[1721343420783,0.05849095,3433.8,3433.5,2.53201825]
[1721343420979,0.05849095,3433.8,3433.6,1.0128073]
[1721343421300,0.05849095,3433.8,3433.4,5.26984]
[1721343421505,0.05849095,3433.8,3433.5,2.53201663]
[1721343421712,0.05849095,3433.8,3433.6,1.01280665]
[1721343421900,0.05849095,3433.8,3433.4,5.87732567]
[1721343421901,5.82402,3434.1,3433.4,5.87732567]
[1721343422101,0.05835655,3433.7,3433.5,2.53196293]
[1721343422310,5.82402,3434.1,3433.6,1.01278536]
[1721343422516,5.82402,3434.1,3433.4,5.87732567]
[1721343422678,5.82402,3434.1,3433.5,2.53196328]
[1721343423009,5.82402,3434.1,3433.6,1.01278531]
[1721343423210,2.91205,3434.0,3433.4,5.26984]
[1721343423376,2.91205,3434.0,3433.5,2.53196386]
[1721343423576,2.91205,3434.0,3433.6,1.01278554]
[1721343423773,2.91205,3434.0,3433.4,8.18231]
[1721343424010,2.91205,3434.0,3433.5,2.53196395]
[1721343424211,2.91205,3434.0,3433.4,8.18231]
[1721343424388,2.91205,3434.0,3433.5,2.53196445]
[1721343424589,2.91205,3434.0,3433.4,5.2698]
[1721343424796,2.91205,3434.0,3433.5,2.53196396]
[1721343425113,2.91205,3434.0,3433.4,5.2698]
[1721343425315,2.91205,3434.0,3433.5,2.53196368]
[1721343425491,0.05838095,3433.9,3433.4,5.2698]
[1721343425675,0.05838095,3433.9,3433.5,2.53196377]
[1721343425880,0.05838095,3433.9,3433.4,8.1823]
[1721343426226,0.05838095,3433.9,3433.5,2.53196298]
[1721343426396,0.05838095,3433.9,3433.4,8.1823]
[1721343426715,0.05838095,3433.9,3433.5,2.53196096]
[1721343426880,0.05838095,3433.9,3433.4,8.1823]
[1721343427079,0.05838095,3433.9,3433.5,5.44443101]
[1721343427282,0.05838095,3433.9,3433.4,2.3573]
[1721343427480,2.91188,3434.2,3433.7,2.9123]
[1721343427680,0.05633302,3433.8,3433.7,2.9123]
[1721343427975,2.91188,3434.2,3433.7,5.44406391]
[1721343428181,2.91188,3434.2,3433.7,2.9123]
[1721343428608,0.05637664,3434.1,3433.7,2.9123]
[1721343429185,0.05637664,3434.1,3433.8,1.01269738]
[1721343429419,0.05637664,3434.1,3433.7,2.9123]
[1721343430395,0.05637664,3434.1,3433.8,1.01268893]
[1721343430601,0.05637664,3434.1,3433.7,2.9123]
[1721343431319,0.05637664,3434.1,3433.8,1.01271029]
[1721343431507,0.05637664,3434.1,3433.7,2.9123]
[1721343431696,0.05637664,3434.1,3433.8,1.01268704]
[1721343431894,0.05637664,3434.1,3433.7,2.9123]
[1721343433219,2.96835664,3434.1,3433.5,3.51989567]
[1721343433410,2.96835664,3434.1,3433.6,5.4442273]
[1721343433714,2.96835664,3434.1,3433.7,1.01273892]
[1721343433896,6.91939664,3434.1,3433.5,0.60748567]
[1721343434088,6.91939664,3434.1,3433.6,2.5318441]
[1721343434288,4.88354408,3434.1,3433.4,8.78979567]
[1721343434589,4.88354408,3434.1,3433.5,2.53188092]
[1721343434784,4.88354408,3434.1,3433.6,2.53188092]
[1721343435021,4.88354408,3434.1,3433.7,1.01275237]
[1721343435022,7.79559408,3434.1,3433.7,1.01275237]
[1721343435226,7.79559408,3434.1,3433.5,3.51995567]
[1721343435422,7.79559408,3434.1,3433.6,2.53188381]
[1721343435649,7.79559408,3434.1,3433.5,2.91247]
[1721343435792,2.91206,3434.0,3433.6,2.53188343]
[1721343436120,2.91206,3434.0,3433.5,2.91247]
[1721343436309,2.91206,3434.0,3433.6,2.53188192]
[1721343436529,0.05632217,3433.9,3433.5,2.91247]
[1721343436732,0.05632217,3433.9,3433.6,2.53188228]
[1721343436932,0.05632217,3433.9,3433.5,2.91247]
[1721343437133,0.05632217,3433.9,3433.6,2.53188188]
[1721343437331,0.05632217,3433.9,3433.7,1.01275275]
[1721343437545,0.05632217,3433.9,3433.5,2.91247]
[1721343437740,0.05632217,3433.9,3433.6,2.53188573]
[1721343438038,0.05632217,3433.9,3433.5,2.91247]
[1721343438244,0.05632217,3433.9,3433.6,2.5318862]
[1721343438448,0.05632217,3433.9,3433.5,2.91247]
[1721343438855,0.05632217,3433.9,3433.6,2.53184991]
[1721343439144,0.05632217,3433.9,3433.5,2.91247]
[1721343439447,0.05632217,3433.9,3433.6,1.01277532]
[1721343439634,0.05632217,3433.9,3433.4,5.87731567]
[1721343439823,0.05632217,3433.9,3433.5,2.53192608]
[1721343440027,0.05632217,3433.9,3433.6,1.01277043]
[1721343440252,0.05632217,3433.9,3433.4,5.87731567]
[1721343440423,0.05632217,3433.9,3433.5,2.53196118]
[1721343440638,0.05632217,3433.9,3433.6,1.01278447]
[1721343440838,0.05632217,3433.9,3433.4,5.87731567]
[1721343441117,0.05632217,3433.9,3433.5,2.53193495]
[1721343441316,0.05632217,3433.9,3433.6,1.01277398]
[1721343441517,2.96846217,3433.9,3433.4,5.87731567]
[1721343441751,2.96846217,3433.9,3433.5,2.53194063]
[1721343442047,2.96846217,3433.9,3433.4,5.26983]
[1721343442263,2.96846217,3433.9,3433.5,2.53198425]
[1721343442560,2.96846217,3433.9,3433.4,5.26983]
[1721343442718,2.96846217,3433.9,3433.5,2.5319838]
[1721343443054,2.96846217,3433.9,3433.4,5.26983]
[1721343443255,2.96846217,3433.9,3433.5,2.53198322]
[1721343443430,2.96846217,3433.9,3433.4,5.26983]
[1721343443627,2.96846217,3433.9,3433.5,2.53198487]
[1721343443832,2.96846217,3433.9,3433.4,5.26983]
[1721343444016,2.96846217,3433.9,3433.5,2.53198488]
[1721343444218,2.96846217,3433.9,3433.4,5.26983]
[1721343444419,2.96846217,3433.9,3433.5,2.53198493]
[1721343444647,2.96846217,3433.9,3433.4,5.26983]
[1721343444846,2.96846217,3433.9,3433.5,2.53198463]
[1721343445033,2.96846217,3433.9,3433.4,5.26983]
[1721343445258,2.96846217,3433.9,3433.5,2.53199058]
[1721343445434,2.96846217,3433.9,3433.6,1.0127921]
[1721343445635,2.96846217,3433.9,3433.4,5.26983]
[1721343445839,2.96846217,3433.9,3433.5,2.53199603]
[1721343446034,2.96846217,3433.9,3433.4,5.26983]
[1721343446240,2.96846217,3433.9,3433.5,2.53200926]
[1721343446441,2.96846217,3433.9,3433.4,5.26983]
[1721343446657,2.96846217,3433.9,3433.5,2.5320149]
[1721343446839,2.96846217,3433.9,3433.4,5.26983]
[1721343447152,2.96846217,3433.9,3433.5,2.53199893]
[1721343447456,2.96846217,3433.9,3433.4,5.26983]
[1721343447768,2.96846217,3433.9,3433.5,2.5319745]
[1721343447929,2.96846217,3433.9,3433.4,5.26983]
[1721343448124,2.96846217,3433.9,3433.5,2.5319838]
[1721343448323,2.96846217,3433.9,3433.6,1.01279352]
[1721343448550,2.96846217,3433.9,3433.4,5.87731567]
[1721343448763,2.96846217,3433.9,3433.5,2.53196695]
[1721343448929,2.96846217,3433.9,3433.6,1.01278678]
[1721343449141,2.96846217,3433.9,3433.4,5.87731567]
[1721343449453,2.96846217,3433.9,3433.5,2.53198536]
[1721343449669,2.96846217,3433.9,3433.6,1.01279414]
[1721343449959,2.96846217,3433.9,3433.4,5.87731567]
[1721343450165,2.96846217,3433.9,3433.5,2.53198762]
[1721343450486,2.96846217,3433.9,3433.4,5.87731567]
[1721343450487,2.96846217,3433.9,3433.4,5.26983]
[1721343450759,2.96846217,3433.9,3433.5,2.53203163]
[1721343450926,2.96846217,3433.9,3433.4,5.26983]
[1721343451127,2.96846217,3433.9,3433.5,2.53203343]
[1721343451329,2.96846217,3433.9,3433.4,5.26983]
[1721343451536,2.96846217,3433.9,3433.5,2.53203233]
[1721343451827,2.96846217,3433.9,3433.6,1.01280698]
[1721343452032,2.96846217,3433.9,3433.4,5.26983]
[1721343452262,2.96846217,3433.9,3433.5,2.5320178]
[1721343452480,2.96846217,3433.9,3433.4,5.26983]
[1721343452809,2.96846217,3433.9,3433.5,2.53203213]
[1721343452962,2.96846217,3433.9,3433.6,1.0128128]
[1721343453130,2.96846217,3433.9,3433.4,5.26983]
[1721343453331,2.96846217,3433.9,3433.5,2.53201688]
[1721343453533,2.96846217,3433.9,3433.4,5.26983]
[1721343453863,2.96846217,3433.9,3433.5,2.53203196]
[1721343454061,2.96846217,3433.9,3433.4,5.26983]
[1721343454231,2.96846217,3433.9,3433.5,2.53204232]
[1721343454431,2.96846217,3433.9,3433.4,5.26983]
[1721343454432,2.96846217,3433.9,3433.6,1.01281693]
[1721343454684,2.96846217,3433.9,3433.4,5.87731567]
[1721343454832,2.96846217,3433.9,3433.5,2.53203287]
[1721343455030,2.96846217,3433.9,3433.6,1.01281315]
[1721343455262,2.96846217,3433.9,3433.4,5.26983]
[1721343455503,2.96846217,3433.9,3433.5,2.53203332]
[1721343455771,2.96846217,3433.9,3433.6,1.01281333]
[1721343456015,2.96846217,3433.9,3433.4,5.26983]
[1721343456210,2.96846217,3433.9,3433.5,1.0128494]
[1721343456518,2.96846217,3433.9,3433.4,5.26983]
[1721343456714,2.96846217,3433.9,3433.5,2.53209]
[1721343456903,2.96846217,3433.9,3433.6,1.012836]
[1721343457090,2.96846217,3433.9,3433.4,5.26983]
[1721343457293,2.96846217,3433.9,3433.5,2.53206365]
[1721343457471,2.96846217,3433.9,3433.6,1.01282546]
[1721343457676,2.96846217,3433.9,3433.4,5.87731567]
[1721343457876,2.96846217,3433.9,3433.5,2.53204272]
[1721343458079,2.96846217,3433.9,3433.6,2.53204272]
[1721343458278,2.96846217,3433.9,3433.4,5.87731567]
[1721343458511,2.96846217,3433.9,3433.5,2.5319963]
[1721343458680,2.96846217,3433.9,3433.6,2.53199636]
[1721343459010,2.96846217,3433.9,3433.4,5.87731567]
[1721343459223,2.96846217,3433.9,3433.5,2.53200542]
[1721343459419,2.96846217,3433.9,3433.6,1.01280217]
[1721343459642,2.96846217,3433.9,3433.7,1.01281432]
[1721343459827,2.96846217,3433.9,3433.4,5.87731567]
[1721343460007,2.96846217,3433.9,3433.5,2.53203798]
[1721343460359,2.96846217,3433.9,3433.6,2.53203798]
[1721343460494,2.96846217,3433.9,3433.7,1.01281519]
[1721343460699,2.96846217,3433.9,3433.4,5.87731567]
[1721343460925,2.96846217,3433.9,3433.5,2.53205566]